fUSD/lending_fUSD_20240119
["ID","MTS","AMOUNT","RATE_DAILY","PERIOD"]
[312151024,1705669884690,-1478.03438221,0.00023036,2]
[312151025,1705669884701,-157.67,0.00023068,2]
[312151026,1705669884711,-206.47,0.0002307,2]
[312151027,1705669884722,-588.13,0.00023111,2]
[312151028,1705669884733,-162.73,0.00023112,2]
[312151029,1705669884744,-332.0457723,0.00023187,2]
[312151030,1705669884754,-13005.71582704,0.00023187,2]
[312151031,1705669884765,-1447.71339773,0.00023187,2]
[312151032,1705669884775,-960.47278166,0.00023187,2]
[312151033,1705669884786,-38840.0,0.000232,2]
[312151034,1705669884800,-3647.0,0.000232,2]
[312151035,1705669884811,-179.82,0.00023205,2]
[312151036,1705669884821,-500.0,0.00023239,2]
[312151037,1705669884834,-1117.22,0.00023239,2]
[312151038,1705669884844,-2777.79,0.0002324,2]
[312151039,1705669884854,-1793.21,0.0002324,2]
[312151040,1705669884864,-1305.51,0.0002324,2]
[312151041,1705669884876,-998.25,0.0002324,2]
[312151042,1705669884886,-776.9,0.0002324,2]
[312151043,1705669884896,-784.93,0.0002324,2]
[312151044,1705669884907,-544.79,0.0002324,2]
[312151045,1705669884917,-940.43,0.0002324,2]
[312151046,1705669884927,-500.0,0.0002324,2]
[312151047,1705669884937,-952.59,0.0002324,2]
[312151048,1705669884947,-500.68,0.0002324,2]
[312151049,1705669884958,-729.01,0.0002324,2]
[312151050,1705669884968,-500.0,0.0002324,2]
[312151051,1705669884978,-570.65,0.0002324,2]
[312151052,1705669884988,-1138.38,0.0002324,2]
[312151053,1705669884998,-1506.44,0.0002324,2]
[312151054,1705669885009,-850.36,0.0002324,2]
[312151055,1705669885019,-1199.42,0.0002324,2]
[312151056,1705669885029,-1703.39,0.0002324,2]
[312151057,1705669885040,-1197.96,0.0002324,2]
[312151058,1705669885051,-500.0,0.0002324,2]
[312151059,1705669885062,-678.77,0.0002324,2]
[312151060,1705669885072,-583.35,0.0002324,2]
[312151061,1705669885082,-894.82,0.0002324,2]
[312151062,1705669885093,-858.01,0.0002324,2]
[312151063,1705669885103,-691.38,0.0002324,2]
[312151064,1705669885115,-971.8,0.0002324,2]
[312151065,1705669885128,-798.78,0.0002324,2]
[312151066,1705669885139,-966.67,0.0002324,2]
[312151067,1705669885149,-500.0,0.0002324,2]
[312151068,1705669885160,-1108.5,0.0002324,2]
[312151069,1705669885170,-500.0,0.0002324,2]
[312151070,1705669885181,-952.64,0.0002324,2]
[312151071,1705669885191,-500.0,0.0002324,2]
[312151072,1705669885202,-920.74,0.0002324,2]
[312151073,1705669885213,-1155.38,0.0002324,2]
[312151074,1705669885223,-500.0,0.0002324,2]
[312151075,1705669885234,-500.0,0.0002324,2]
[312151076,1705669885243,-656.74,0.0002324,2]
[312151077,1705669885254,-1240.41,0.0002324,2]
[312151078,1705669885264,-1113.02,0.0002324,2]
[312151079,1705669885275,-594.85,0.0002324,2]
[312151080,1705669885285,-1108.53,0.0002324,2]
[312151081,1705669885295,-685.72,0.0002324,2]
[312151082,1705669885305,-2887.99,0.0002324,2]
[312151083,1705669885315,-1061.46,0.0002324,2]
[312151084,1705669885326,-2576.06,0.0002324,2]
[312151085,1705669885336,-884.86,0.0002324,2]
[312151086,1705669885346,-1444.68,0.0002324,2]
[312151087,1705669885358,-1400.48,0.0002324,2]
[312151088,1705669885369,-800.66,0.0002324,2]
[312151089,1705669885380,-718.12,0.0002324,2]
[312151090,1705669885391,-819.09,0.0002324,2]
[312151091,1705669885401,-1194.07,0.0002324,2]
[312151092,1705669885412,-1896.64,0.0002324,2]
[312151093,1705669885423,-1350.41,0.0002324,2]
[312151094,1705669885433,-1068.88,0.0002324,2]
[312151095,1705669885444,-905.24,0.0002324,2]
[312151096,1705669885454,-500.0,0.0002324,2]
[312151097,1705669885465,-1145.69,0.0002324,2]
[312151098,1705669885477,-502.2,0.0002324,2]
[312151099,1705669885487,-1504.96,0.0002324,2]
[312151100,1705669885498,-500.0,0.0002324,2]
[312151101,1705669885508,-1076.22,0.0002324,2]
[312151102,1705669885519,-1677.73,0.0002324,2]
[312151103,1705669885529,-512.37599643,0.00023241,2]
[312151104,1705669885539,-500.0,0.00023241,2]
[312151105,1705669885549,-500.0,0.00023241,2]
[312151106,1705669885560,-500.0,0.00023241,2]
[312151107,1705669885571,-500.0,0.00023241,2]
[312151108,1705669885581,-516.65742547,0.00023241,2]
[312151109,1705669885592,-500.0,0.00023241,2]
[312151110,1705669885602,-500.0,0.00023242,2]
[312151111,1705669885613,-500.0,0.00023242,2]
[312151112,1705669885624,-500.0,0.00023242,2]
[312151113,1705669885635,-1117.22,0.00023242,2]
[312151114,1705669885645,-2777.79,0.00023242,2]
[312151115,1705669885656,-500.0,0.00023243,2]
[312151116,1705669885667,-500.0,0.00023243,2]
[312151117,1705669885678,-657.2,0.00023243,2]
[312151118,1705669885689,-500.0,0.00023243,2]
[312151119,1705669885700,-500.0,0.00023243,2]
[312151120,1705669885710,-500.0,0.00023243,2]
[312151121,1705669885721,-500.0,0.00023243,2]
[312151122,1705669885732,-500.0,0.00023243,2]
[312151123,1705669885742,-570.75,0.00023243,2]
[312151124,1705669885753,-500.0,0.00023243,2]
[312151125,1705669885765,-582.99,0.00023243,2]
[312151126,1705669885775,-500.0,0.00023243,2]
[312151127,1705669885786,-500.0,0.00023243,2]
[312151128,1705669885801,-1449.11,0.00023243,2]
[312151129,1705669885811,-536.07099148,0.00023243,2]
[312151130,1705669885822,-1134.6,0.00023243,2]
[312151131,1705669885833,-500.0,0.00023243,2]
[312151132,1705669885844,-598.69,0.00023243,2]
[312151133,1705669885855,-638.02,0.00023243,2]
[312151134,1705669885866,-500.0,0.00023243,2]
[312151135,1705669885878,-746.32,0.00023243,2]
[312151136,1705669885889,-532.01,0.00023243,2]
[312151137,1705669885899,-1117.22,0.00023243,2]
[312151138,1705669885911,-795.41,0.00023243,2]
[312151139,1705669885923,-500.0,0.00023243,2]
[312151140,1705669885934,-500.0,0.00023243,2]
[312151141,1705669885945,-500.0,0.00023243,2]
[312151142,1705669885956,-1341.46,0.00023243,2]
[312151143,1705669885968,-500.0,0.00023243,2]
[312151144,1705669885979,-500.0,0.00023243,2]
[312151145,1705669885991,-500.0,0.00023243,2]
[312151146,1705669886002,-555.25,0.00023243,2]
[312151147,1705669886012,-849.48,0.00023243,2]
[312151148,1705669886023,-500.0,0.00023243,2]
[312151149,1705669886034,-549.55,0.00023243,2]
[312151150,1705669886044,-1615.25,0.00023243,2]
[312151151,1705669886055,-688.47,0.00023243,2]
[312151152,1705669886066,-500.0,0.00023244,2]
[312151153,1705669886077,-500.0,0.00023244,2]
[312151154,1705669886088,-500.0,0.00023244,2]
[312151155,1705669886098,-1231.94,0.00023244,2]
[312151156,1705669886109,-500.0,0.00023244,2]
[312151157,1705669886120,-500.0,0.00023244,2]
[312151158,1705669886131,-680.51,0.00023244,2]
[312151159,1705669886143,-686.07,0.00023244,2]
[312151160,1705669886153,-500.0,0.00023244,2]
[312151161,1705669886165,-500.0,0.00023244,2]
[312151162,1705669886176,-500.0,0.00023244,2]
[312151163,1705669886187,-500.0,0.00023244,2]
[312151164,1705669886197,-505.02942728,0.00023244,2]
[312151165,1705669886208,-500.65,0.00023244,2]
[312151166,1705669886219,-500.0,0.00023244,2]
[312151167,1705669886229,-500.0,0.00023244,2]
[312151168,1705669886240,-1025.0,0.00023244,2]
[312151169,1705669886250,-500.0,0.00023244,2]
[312151170,1705669886260,-500.0,0.00023244,2]
[312151171,1705669886270,-511.27,0.00023244,2]
[312151172,1705669886280,-622.13,0.00023244,2]
[312151173,1705669886290,-500.0,0.00023244,2]
[312151174,1705669886301,-815.55,0.00023245,2]
[312151175,1705669886311,-3637.81230197,0.00023246,2]
[312151176,1705669886322,-2777.79,0.00023247,2]
[312151177,1705669886333,-500.0,0.00023252,2]
[312151178,1705669886614,-1117.22,0.00023252,2]
[312151179,1705669886668,-1426.3407386,0.00023276,7]
[312151180,1705669886678,-204.0,0.00023282,6]
[312151181,1705669886688,-2777.79,0.00023286,2]
[312151182,1705669886699,-2777.79,0.00023286,2]
[312151183,1705669886709,-2777.79,0.00023286,2]
[312151184,1705669886719,-2777.79,0.00023286,2]
[312151185,1705669886730,-2777.89673044,0.00023286,2]
[312151186,1705669886740,-150.0,0.00023286,2]
[312151187,1705669886750,-1458.55749093,0.00023287,2]
[312151188,1705669886760,-500.0,0.00023287,2]
[312151189,1705669886770,-500.0,0.00023287,2]
[312151190,1705669886780,-500.0,0.00023287,2]
[312151191,1705669886792,-500.0,0.00023287,2]
[312151192,1705669886803,-500.0,0.00023287,2]
[312151193,1705669886813,-500.0,0.00023287,2]
[312151194,1705669886822,-500.0,0.00023287,2]
[312151195,1705669886832,-1166.14,0.00023287,2]
[312151196,1705669886844,-500.0,0.00023287,2]
[312151197,1705669886853,-636.19,0.00023287,2]
[312151198,1705669886864,-535.61,0.00023287,2]
[312151199,1705669886875,-500.0,0.00023287,2]
[312151200,1705669886885,-500.0,0.00023287,2]
[312151201,1705669886895,-500.0,0.00023287,2]
[312151202,1705669886905,-500.0,0.00023287,2]
[312151203,1705669886916,-881.3,0.00023287,2]
[312151204,1705669886926,-535.3522427,0.00023287,2]
[312151205,1705669886936,-1150.15,0.00023287,2]
[312151206,1705669886946,-500.0,0.00023287,2]
[312151207,1705669886956,-500.0,0.00023287,2]
[312151208,1705669886966,-500.0,0.00023287,2]
[312151209,1705669886977,-533.70077219,0.00023287,2]
[312151210,1705669886987,-500.0,0.00023287,2]
[312151211,1705669886997,-500.0,0.00023287,2]
[312151212,1705669887007,-500.0,0.00023287,2]
[312151213,1705669887017,-558.96,0.00023287,2]
[312151214,1705669887028,-767.26,0.00023287,2]
[312151215,1705669887038,-244.37377621,0.00023287,2]
[312151216,1705669887049,-671.71,0.00023287,2]
[312151217,1705669887059,-500.0,0.00023287,2]
[312151218,1705669887069,-500.0,0.00023287,2]
[312151219,1705669887079,-500.0,0.00023287,2]
[312151220,1705669887090,-545.37,0.00023287,2]
[312151221,1705669887101,-500.0,0.00023287,2]
[312151222,1705669887111,-698.53,0.00023287,2]
[312151223,1705669887121,-500.0,0.00023287,2]
[312151224,1705669887131,-408.98986228,0.00023287,2]
[312151225,1705669887142,-500.0,0.00023287,2]
[312151226,1705669887153,-790.21,0.00023287,2]
[312151227,1705669887163,-703.41,0.00023287,2]
[312151228,1705669887173,-500.0,0.00023287,2]
[312151229,1705669887183,-500.0,0.00023287,2]
[312151230,1705669887195,-895.32,0.00023287,2]
[312151231,1705669887205,-500.0,0.00023287,2]
[312151232,1705669887215,-500.0,0.00023287,2]
[312151233,1705669887225,-571.69,0.00023287,2]
[312151234,1705669887235,-647.03,0.00023287,2]
[312151235,1705669887245,-500.0,0.00023287,2]
[312151236,1705669887255,-500.0,0.00023287,2]
[312151237,1705669887265,-1927.09,0.00023287,2]
[312151238,1705669887275,-711.44,0.00023287,2]
[312151239,1705669887285,-500.0,0.00023287,2]
[312151240,1705669887296,-739.94,0.00023287,2]
[312151241,1705669887306,-500.0,0.00023287,2]
[312151242,1705669887316,-1124.59,0.00023287,2]
[312151243,1705669887327,-500.0,0.00023287,2]
[312151244,1705669887338,-500.0,0.00023287,2]
[312151245,1705669887349,-664.41,0.00023287,2]
[312151246,1705669887360,-882.8,0.00023287,2]
[312151247,1705669887371,-507.69,0.00023287,2]
[312151248,1705669887381,-883.64,0.00023287,2]
[312151249,1705669887393,-500.0,0.00023287,2]
[312151250,1705669887403,-1919.81,0.00023287,2]
[312151251,1705669887414,-899.16,0.00023287,2]
[312151252,1705669887424,-744.37,0.00023287,2]
[312151253,1705669887434,-500.0,0.00023287,2]
[312151254,1705669887446,-500.0,0.00023287,2]
[312151255,1705669887456,-648.21,0.00023287,2]
[312151256,1705669887466,-1272.95,0.00023287,2]
[312151257,1705669887477,-902.19,0.00023287,2]
[312151258,1705669887486,-500.0,0.00023287,2]
[312151259,1705669887496,-500.0,0.00023287,2]
[312151260,1705669887506,-500.0,0.00023287,2]
[312151261,1705669887516,-1231.59,0.00023287,2]
[312151262,1705669887527,-648.29,0.00023287,2]
[312151263,1705669887537,-484.28492188,0.00023287,2]
[312151264,1705669887547,-521.51998178,0.00023287,2]
[312151265,1705669887557,-500.0,0.00023287,2]
[312151266,1705669887567,-928.06,0.00023287,2]
[312151267,1705669887578,-500.0,0.00023287,2]
[312151268,1705669887588,-219.81978023,0.00023287,2]
[312151269,1705669887599,-1262.81,0.00023287,2]
[312151270,1705669887609,-608.03,0.00023287,2]
[312151271,1705669887620,-500.0,0.00023287,2]
[312151272,1705669887630,-500.0,0.00023287,2]
[312151273,1705669887641,-322.06488637,0.00023287,2]
[312151274,1705669887651,-716.12,0.00023287,2]
[312151275,1705669887662,-563.41,0.00023287,2]
[312151276,1705669887673,-500.0,0.00023287,2]
[312151277,1705669887683,-500.0,0.00023287,2]
[312151278,1705669887693,-903.17,0.00023287,2]
[312151279,1705669887703,-696.7,0.00023287,2]
[312151280,1705669887713,-1064.15,0.00023287,2]
[312151281,1705669887723,-575.26,0.00023287,2]
[312151282,1705669887733,-539.33,0.00023287,2]
[312151283,1705669887744,-500.34,0.00023287,2]
[312151284,1705669887754,-542.26,0.00023287,2]
[312151285,1705669887765,-506.9305075,0.00023287,2]
[312151286,1705669887775,-2012.98,0.00023287,2]
[312151287,1705669887785,-856.21,0.00023287,2]
[312151288,1705669887798,-684.1,0.00023287,2]
[312151289,1705669887809,-515.06,0.00023287,2]
[312151290,1705669887819,-500.0,0.00023287,2]
[312151291,1705669887829,-814.87,0.00023287,2]
[312151292,1705669887840,-500.0,0.00023287,2]
[312151293,1705669887850,-500.0,0.00023287,2]
[312151294,1705669887860,-500.0,0.00023287,2]
[312151295,1705669887870,-500.0,0.00023287,2]
[312151296,1705669887881,-718.46,0.00023287,2]
[312151297,1705669887891,-500.0,0.00023287,2]
[312151298,1705669887901,-500.0,0.00023287,2]
[312151299,1705669887912,-1408.02,0.00023287,2]
[312151300,1705669887922,-500.0,0.00023287,2]
[312151301,1705669887932,-500.0,0.00023287,2]
[312151302,1705669887943,-500.0,0.00023287,2]
[312151303,1705669887952,-500.0,0.00023287,2]
[312151304,1705669887961,-546.65,0.00023287,2]
[312151305,1705669887971,-841.35,0.00023287,2]
[312151306,1705669887981,-770.59,0.00023287,2]
[312151307,1705669887990,-733.89,0.00023287,2]
[312151308,1705669888000,-769.83,0.00023287,2]
[312151309,1705669888010,-926.17,0.00023287,2]
[312151310,1705669888019,-500.0,0.00023287,2]
[312151311,1705669888029,-680.95,0.00023287,2]
[312151312,1705669888038,-500.0,0.00023287,2]
[312151313,1705669888048,-622.1,0.00023287,2]
[312151314,1705669888057,-500.0,0.00023287,2]
[312151315,1705669888067,-500.0,0.00023287,2]
[312151316,1705669888077,-500.0,0.00023287,2]
[312151317,1705669888087,-500.0,0.00023287,2]
[312151318,1705669888097,-500.0,0.00023287,2]
[312151319,1705669888106,-852.32,0.00023287,2]
[312151320,1705669888116,-541.18,0.00023287,2]
[312151321,1705669888126,-774.53,0.00023287,2]
[312151322,1705669888135,-623.89,0.00023287,2]
[312151323,1705669888145,-910.14,0.00023287,2]
[312151324,1705669888155,-500.0,0.00023287,2]
[312151325,1705669888165,-500.0,0.00023287,2]
[312151326,1705669888175,-500.0,0.00023287,2]
[312151327,1705669888185,-918.52,0.00023287,2]
[312151328,1705669888195,-1225.46,0.00023287,2]
[312151329,1705669888205,-1110.62,0.00023287,2]
[312151330,1705669888215,-587.94791028,0.00023287,2]
[312151331,1705669888224,-564.11834524,0.00023287,2]
[312151332,1705669888234,-500.0,0.00023287,2]
[312151333,1705669888244,-722.75,0.00023287,2]
[312151334,1705669888253,-681.27,0.00023287,2]
[312151335,1705669888263,-720.2,0.00023287,2]
[312151336,1705669888272,-1281.21,0.00023287,2]
[312151337,1705669888282,-259.437653,0.00023287,2]
[312151338,1705669888291,-960.8,0.00023287,2]
[312151339,1705669888301,-549.72732058,0.00023287,2]
[312151340,1705669888310,-1200.27,0.00023287,2]
[312151341,1705669888320,-500.0,0.00023287,2]
[312151342,1705669888329,-996.2,0.00023287,2]
[312151343,1705669888338,-500.0,0.00023287,2]
[312151344,1705669888348,-733.48,0.00023287,2]
[312151345,1705669888359,-717.41,0.00023287,2]
[312151346,1705669888370,-500.0,0.00023287,2]
[312151347,1705669888380,-500.0,0.00023287,2]
[312151348,1705669888390,-567.28,0.00023287,2]
[312151349,1705669888399,-500.0,0.00023287,2]
[312151350,1705669888408,-544.36,0.00023287,2]
[312151351,1705669888418,-500.0,0.00023287,2]
[312151352,1705669888427,-500.0,0.00023287,2]
[312151353,1705669888437,-500.0,0.00023287,2]
[312151354,1705669888446,-500.0,0.00023287,2]
[312151355,1705669888456,-508.81,0.00023287,2]
[312151356,1705669888465,-500.0,0.00023287,2]
[312151357,1705669888475,-500.0,0.00023287,2]
[312151358,1705669888485,-527.30360526,0.00023287,2]
[312151359,1705669888495,-500.0,0.00023287,2]
[312151360,1705669888505,-685.86,0.00023287,2]
[312151361,1705669888515,-500.0,0.00023287,2]
[312151362,1705669888525,-864.15,0.00023287,2]
[312151363,1705669888535,-500.0,0.00023287,2]
[312151364,1705669888545,-502.08,0.00023287,2]
[312151365,1705669888554,-504.94,0.00023287,2]
[312151366,1705669888564,-854.99,0.00023287,2]
[312151367,1705669888574,-606.04,0.00023287,2]
[312151368,1705669888583,-851.01,0.00023287,2]
[312151369,1705669888593,-571.27,0.00023287,2]
[312151370,1705669888603,-500.0,0.00023287,2]
[312151371,1705669888613,-1336.55,0.00023287,2]
[312151372,1705669888623,-500.0,0.00023287,2]
[312151373,1705669888634,-500.0,0.00023287,2]
[312151374,1705669888644,-500.0,0.00023287,2]
[312151375,1705669888654,-953.61,0.00023287,2]
[312151376,1705669888664,-536.63,0.00023287,2]
[312151377,1705669888674,-770.79,0.00023287,2]
[312151378,1705669888684,-500.0,0.00023287,2]
[312151379,1705669888694,-662.32,0.00023287,2]
[312151380,1705669888704,-811.51,0.00023287,2]
[312151381,1705669888713,-500.0,0.00023287,2]
[312151382,1705669888723,-500.0,0.00023287,2]
[312151383,1705669888733,-845.2,0.00023287,2]
[312151384,1705669888742,-500.0,0.00023287,2]
[312151385,1705669888752,-788.16,0.00023287,2]
[312151386,1705669888762,-653.02,0.00023287,2]
[312151387,1705669888771,-500.0,0.00023287,2]
[312151388,1705669888782,-1258.44,0.00023287,2]
[312151389,1705669888792,-500.0,0.00023287,2]
[312151390,1705669888802,-500.0,0.00023287,2]
[312151391,1705669888812,-500.0,0.00023287,2]
[312151392,1705669888822,-500.0,0.00023287,2]
[312151393,1705669888832,-500.0,0.00023287,2]
[312151394,1705669888841,-500.0,0.00023287,2]
[312151395,1705669888851,-640.03,0.00023287,2]
[312151396,1705669888861,-769.35,0.00023287,2]
[312151397,1705669888872,-570.39,0.00023287,2]
[312151398,1705669888884,-723.58,0.00023287,2]
[312151399,1705669888894,-1088.57,0.00023287,2]
[312151400,1705669888903,-1400.81,0.00023287,2]
[312151401,1705669888913,-500.0,0.00023287,2]
[312151402,1705669888922,-613.93,0.00023287,2]
[312151403,1705669888932,-500.0,0.00023287,2]
[312151404,1705669888941,-500.0,0.00023287,2]
[312151405,1705669888950,-749.16,0.00023287,2]
[312151406,1705669888959,-739.73,0.00023287,2]
[312151407,1705669888969,-500.0,0.00023287,2]
[312151408,1705669888979,-500.0,0.00023287,2]
[312151409,1705669888990,-1591.86,0.00023287,2]
[312151410,1705669889000,-500.0,0.00023287,2]
[312151411,1705669889009,-520.91,0.00023287,2]
[312151412,1705669889019,-500.0,0.00023287,2]
[312151413,1705669889029,-500.0,0.00023287,2]
[312151414,1705669889038,-556.82,0.00023287,2]
[312151415,1705669889048,-500.0,0.00023287,2]
[312151416,1705669889061,-500.0,0.00023287,2]
[312151417,1705669889071,-657.02,0.00023287,2]
[312151418,1705669889080,-903.89,0.00023287,2]
[312151419,1705669889090,-1000.86,0.00023287,2]
[312151420,1705669889100,-517.96512642,0.00023287,2]
[312151421,1705669889110,-619.43,0.00023287,2]
[312151422,1705669889121,-759.91,0.00023287,2]
[312151423,1705669889130,-549.59,0.00023287,2]
[312151424,1705669889140,-500.0,0.00023287,2]
[312151425,1705669889150,-754.71,0.00023287,2]
[312151426,1705669889160,-500.0,0.00023287,2]
[312151427,1705669889169,-500.0,0.00023287,2]
[312151428,1705669889179,-500.0,0.00023287,7]
[312151429,1705669889189,-1295.82,0.00023287,2]
[312151430,1705669889199,-500.0,0.00023287,2]
[312151431,1705669889209,-536.32,0.00023287,2]
[312151432,1705669889218,-697.99,0.00023287,2]
[312151433,1705669889228,-637.25,0.00023287,2]
[312151434,1705669889237,-585.76,0.00023287,2]
[312151435,1705669889246,-971.36,0.00023287,2]
[312151436,1705669889256,-500.0,0.00023287,2]
[312151437,1705669889266,-508.57,0.00023287,2]
[312151438,1705669889275,-500.0,0.00023287,2]
[312151439,1705669889285,-516.49,0.00023287,2]
[312151440,1705669889294,-500.0,0.00023287,2]
[312151441,1705669889304,-674.4,0.00023287,2]
[312151442,1705669889313,-1174.25,0.00023287,2]
[312151443,1705669889322,-500.0,0.00023287,2]
[312151444,1705669889332,-500.0,0.00023287,2]
[312151445,1705669889341,-2577.21,0.00023287,2]
[312151446,1705669889351,-551.89,0.00023287,2]
[312151447,1705669889361,-1004.34,0.00023287,2]
[312151448,1705669889371,-500.0,0.00023287,2]
[312151449,1705669889381,-500.0,0.00023287,2]
[312151450,1705669889391,-500.0,0.00023287,2]
[312151451,1705669889401,-595.37,0.00023287,2]
[312151452,1705669889411,-500.0,0.00023287,2]
[312151453,1705669889420,-975.94,0.00023287,2]
[312151454,1705669889430,-1384.81,0.00023287,2]
[312151455,1705669889439,-500.0,0.00023287,2]
[312151456,1705669889448,-300.0,0.00023287,2]
[312151457,1705669889458,-2155.6,0.00023287,2]
[312151458,1705669889468,-500.0,0.00023287,2]
[312151459,1705669889478,-607.66,0.00023287,2]
[312151460,1705669889488,-500.0,0.00023287,2]
[312151461,1705669889498,-993.96,0.00023287,2]
[312151462,1705669889507,-500.0,0.00023287,2]
[312151463,1705669889520,-500.0,0.00023287,2]
[312151464,1705669889536,-500.0,0.00023287,2]
[312151465,1705669889551,-500.0,0.00023287,2]
[312151466,1705669889564,-1491.73,0.00023287,2]
[312151467,1705669889580,-500.0,0.00023287,2]
[312151468,1705669889597,-500.0,0.00023287,2]
[312151469,1705669889612,-500.0,0.00023287,2]
[312151470,1705669889628,-2597.14,0.00023287,2]
[312151471,1705669889643,-884.11,0.00023287,2]
[312151472,1705669889656,-500.0,0.00023287,2]
[312151473,1705669889671,-702.17,0.00023287,2]
[312151474,1705669889685,-500.0,0.00023287,2]
[312151475,1705669889699,-500.0,0.00023287,2]
[312151476,1705669889714,-1278.53,0.00023287,2]
[312151477,1705669889727,-509.99,0.00023287,2]
[312151478,1705669889739,-1304.44,0.00023287,2]
[312151479,1705669889755,-644.49,0.00023287,2]
[312151480,1705669889770,-584.68685577,0.00023287,2]
[312151481,1705669889784,-4136.35,0.00023287,2]
[312151482,1705669889800,-756.21,0.00023287,2]
[312151483,1705669889814,-500.0,0.00023287,2]
[312151484,1705669889828,-1691.78,0.00023287,2]
[312151485,1705669889845,-957.56,0.00023287,2]
[312151486,1705669889861,-500.0,0.00023287,2]
[312151487,1705669889877,-500.0,0.00023287,2]
[312151488,1705669889890,-500.0,0.00023287,2]
[312151489,1705669889902,-500.0,0.00023287,2]
[312151490,1705669889916,-561.8,0.00023287,2]
[312151491,1705669889929,-1210.49,0.00023287,2]
[312151492,1705669889945,-557.2,0.00023287,2]
[312151493,1705669889958,-500.0,0.00023287,2]
[312151494,1705669889971,-512.25077313,0.00023287,2]
[312151495,1705669889987,-1263.43,0.00023287,2]
[312151496,1705669890000,-970.19,0.00023287,2]
[312151497,1705669890013,-3690.4,0.00023287,2]
[312151498,1705669890025,-500.0,0.00023287,2]
[312151499,1705669890038,-790.63,0.00023287,2]
[312151500,1705669890051,-500.0,0.00023287,2]
[312151501,1705669890064,-500.0,0.00023287,2]
[312151502,1705669890077,-500.0,0.00023287,2]
[312151503,1705669890091,-702.42,0.00023287,2]
[312151504,1705669890104,-3924.47,0.00023287,2]
[312151505,1705669890117,-500.0,0.00023287,2]
[312151506,1705669890130,-598.21,0.00023287,2]
[312151507,1705669890143,-973.67,0.00023287,2]
[312151508,1705669890156,-1520.21,0.00023287,2]
[312151509,1705669890169,-500.0,0.00023287,2]
[312151510,1705669890181,-562.92,0.00023287,2]
[312151511,1705669890193,-500.0,0.00023287,2]
[312151512,1705669890207,-1299.47,0.00023287,2]
[312151513,1705669890218,-4002.65,0.00023287,2]
[312151514,1705669890231,-1988.16,0.00023287,5]
[312151515,1705669890243,-687.96,0.00023287,2]
[312151516,1705669890255,-821.93,0.00023287,2]
[312151517,1705669890267,-1689.55,0.00023287,2]
[312151518,1705669890279,-621.19,0.00023287,2]
[312151519,1705669890292,-574.45,0.00023287,2]
[312151520,1705669890305,-500.0,0.00023287,2]
[312151521,1705669890317,-2788.01,0.00023287,2]
[312151522,1705669890330,-500.0,0.00023287,2]
[312151523,1705669890343,-1406.79,0.00023287,2]